[Event "Polish Youth G16 Championship 2023"]
[Site "Jastrzebia Gora"]
[Date "2023.03.14"]
[Round "4.2"]
[White "Szczotka, Klara"]
[Black "Kawa, Anna"]
[Result "1-0"]
[ECO "C16"]
[WhiteElo "1739"]
[BlackElo "1743"]
[Annotator "NA RC COMBH"]
[PlyCount "125"]
[EventDate "2023.03.11"]
[EventType "swiss"]
[EventCountry "POL"]
[SourceTitle "playchess.com"]
[Source "ChessBase"]
[SourceQuality "1"]
[TimeControl "40/5400+30:1800+30"]

1. e4 {[%emt 0:00:01]} e6 {[%emt 0:00:24]} 2. d4 {[%emt 0:00:04]} d5 {[%emt 0:00:39]} 3. Nc3 {[%emt 0:00:16]} Bb4 {[%emt 0:00:41]} 4. e5 {[%emt 0:00:49]} b6 {[%emt 0:00:58]} 5. Qg4 {[%emt 0:03:16]} Bf8 {[%emt 0:00:52]} 6. Nf3 {[%emt 0:07:41]} Ne7 {[%emt 0:10:21]} 7. Bg5 {[%emt 0:12:33]} Nbc6 {[%emt 0:03:13]} 8. Bb5 {[%emt 0:09:27]} Bd7 {[%emt 0:01:21]} 9. a3 {[%emt 0:04:17]} h6 {[%emt 0:04:43]} 10. Bh4 {[%emt 0:07:36]} a6 {[%emt 0:04:45]} 11. Bd3 {[%emt 0:00:57]} Na5 {[%emt 0:18:01]} 12. b4 {[%emt 0:04:25]} Nc4 {[%emt 0:01:29]} 13. Bxc4 {[%emt 0:01:17]} dxc4 {[%emt 0:00:04]} 14. Bxe7 {[%emt 0:03:33]} Qxe7 {[%emt 0:00:43]} 15. Qe4 {[%emt 0:00:22]} c6 {[%emt 0:03:03]} 16. O-O {[%emt 0:03:55]} Qd8 {[%emt 0:02:29]} 17. Qe2 {[%emt 0:06:24]} Be7 {[%emt 0:04:45]} 18. Qxc4 {[%emt 0:01:50]} O-O {[%emt 0:00:23]} 19. Rfd1 {[%emt 0:00:58]} Qc8 {[%emt 0:01:03]} 20. Ne4 {[%emt 0:01:49]} Rd8 {[%emt 0:01:31]} 21. Rab1 {[%emt 0:06:01]} Be8 {[%emt 0:03:35]} 22. h3 {[%emt 0:01:23]} Rd5 {[%emt 0:10:34]} 23. Qb3 {[%emt 0:03:34]} Qc7 {[%emt 0:10:53]} 24. c4 {[%emt 0:01:13]} Rdd8 {[%emt 0:00:04]} 25. Rbc1 {[%emt 0:00:36]} a5 {[%emt 0:02:12]} 26. c5 {[%emt 0:11:14]} axb4 {[%emt 0:03:03]} 27. axb4 {[%emt 0:00:08]} Rdb8 {[%emt 0:01:18]} 28. Nd6 {[%emt 0:01:05]} Bd7 {[%emt 0:01:26]} 29. Nd2 {[%emt 0:01:36]} bxc5 {[%emt 0:02:14]} 30. dxc5 {[%emt 0:00:10]} Bg5 {[%emt 0:00:40]} 31. Rc4 {[%emt 0:01:04]} Bc8 {[%emt 0:00:39]} 32. f4 {[%emt 0:00:42]} Be7 {[%emt 0:00:47]} 33. Nxc8 {[%emt 0:00:46]} Qxc8 {[%emt 0:00:49]} 34. Ne4 {[%emt 0:00:16]} Qa6 {[%emt 0:00:56]} 35. Nd6 {[%emt 0:02:06]} Qa2 {[%emt 0:02:36]} 36. Qxa2 {[%emt 0:00:11]} Rxa2 {[%emt 0:00:02]} 37. Rb1 {[%emt 0:00:11]} Ra4 {[%emt 0:01:15]} 38. Kf1 {[%emt 0:01:18]} f6 {[%emt 0:01:35]} 39. Rb2 {[%emt 0:03:14]} fxe5 {[%emt 0:00:12]} 40. fxe5 {[%emt 0:00:00]} Bg5 {[%emt 0:00:00]} 41. Ke2 {[%emt 0:05:42]} Bc1 {[%emt 0:07:41]} 42. Rxc1 {[%emt 0:00:10]} Raxb4 {[%emt 0:00:15]} 43. Rxb4 {[%emt 0:00:04]} Rxb4 {[%emt 0:00:03]} 44. Rc2 {[%emt 0:00:35]} Rd4 {[%emt 0:00:50]} 45. Ke3 {[%emt 0:00:32]} Rd1 {[%emt 0:00:29]} 46. Rd2 {[%emt 0:00:35]} Re1+ {[%emt 0:00:28]} 47. Kd4 {[%emt 0:00:09]} Rf1 {[%emt 0:00:08]} 48. Ne4 {[%emt 0:00:44]} Ra1 {[%emt 0:02:50]} 49. Nc3 {[%emt 0:00:38]} Rf1 {[%emt 0:00:28]} 50. Rb2 {[%emt 0:00:23]} Rf4+ {[%emt 0:00:55]} 51. Kd3 {[%emt 0:00:08]} Kf7 {[%emt 0:03:24]} 52. Rb7+ {[%emt 0:00:32]} Kg6 {[%emt 0:00:12]} 53. Ne2 {[%emt 0:01:30]} Ra4 {[%emt 0:02:14]} 54. Nd4 {[%emt 0:01:33]} Ra2 {[%emt 0:01:59]} 55. g4 {[%emt 0:01:20]} Ra3+ {[%emt 0:02:46]} 56. Rb3 {[%emt 0:00:22]} Ra5 {[%emt 0:02:15]} 57. Nxe6 {[%emt 0:00:26]} Kf7 {[%emt 0:00:15]} 58. Nd8+ {[%emt 0:00:15]} Ke8 {[%emt 0:00:16]} 59. Nxc6 {[%emt 0:00:09]} Rxc5 {[%emt 0:00:03]} 60. Rc3 {[%emt 0:00:06]} Rd5+ {[%emt 0:01:05]} 61. Ke4 {[%emt 0:00:13]} Rd1 {[%emt 0:00:20]} 62. Kf5 {[%emt 0:00:35]} Kf8 {[%emt 0:03:00]} 63. Ra3 {[%emt 0:00:27]} 1-0

[Event "Polish Youth G16 Championship 2023"]
[Site "Jastrzebia Gora"]
[Date "2023.03.14"]
[Round "4.3"]
[White "Tokarz, Izabela"]
[Black "Smietanska, Wiktoria"]
[Result "1/2-1/2"]
[ECO "D43"]
[WhiteElo "1725"]
[BlackElo "1954"]
[Annotator "TA"]
[PlyCount "185"]
[EventDate "2023.03.11"]
[EventType "swiss"]
[EventCountry "POL"]
[SourceTitle "playchess.com"]
[Source "ChessBase"]
[SourceQuality "1"]
[TimeControl "40/5400+30:1800+30"]

{[%evp 18,185,0,0,50,0,6,0,0,0,17,8,39,47,78,39,83,40,85,40,38,0,0,0,0,19,20,12,25,23,73,46,45,18,72,26,190,188,181,170,207,218,218,60,51,61,47,51,47,43,38,46,126,124,174,179,179,181,191,154,153,106,110,-39,-71,-61,-13,-114,-115,-180,-66,-82,-88,-74,-37,-93,-87,-135,-135,-135,-135,-135,-135,-559,-533,-526,-511,-447,-204,-197,-189,-182,-135,-180,-135,-135,-135,-135,-135,-135,-135,-135,-135,-135,-135,-135,-135,-135,-135,-135,0,-135,0,-135,0,-135,-135,-29986,-135,-135,-135,-128,-128,-128,-128,-135,-135,-135,-135,-135,-8,-8,-8,-135,-135,-135,-135,-135,-135,-135,-135,-135,-135,-135,-8,-135,-8,-135,-8,-8,-8,-8,-8,-8,-8,-8,-8,-8,-8,-8,0,-8,0,-8,0,0,0,-8,8,0]} 1. d4 {[%emt 0:01:53]} d5 {[%emt 0:00:06]} 2. c4 {[%emt 0:00:08]} c6 {[%emt 0:00:06]} 3. Nf3 {[%emt 0:00:28]} Nf6 {[%emt 0:00:08]} 4. Nc3 {[%emt 0:00:10]} e6 {[%emt 0:00:07]} 5. cxd5 {[%emt 0:02:04]} exd5 {[%emt 0:03:49]} 6. Bg5 {[%emt 0:00:05]} Bd6 {[%emt 0:02:19]} 7. Qc2 {[%emt 0:00:14]} O-O {[%emt 0:01:55]} 8. e3 {[%emt 0:00:02]} h6 {[%emt 0:04:17]} 9. Bh4 {[%emt 0:00:07]} Re8 {[%emt 0:05:34] 9...Be6 is the modern continuation.} 10. Bd3 {[%emt 0:00:15]} Bg4 {[%emt 0:01:11] [#] D35: Queen's Gambit Declined: Exchange Variation.} (10... Be6 $11) 11. Rb1 $146 {[%emt 0:15:21]} (11. h3 $14 Bxf3 12. gxf3) ({Predecessor:} 11. O-O Nbd7 12. Bg3 Bxg3 13. hxg3 Qe7 14. Rab1 Ne4 15. Bxe4 dxe4 16. Nd2 Nf6 17. b4 Rac8 18. Rfc1 {0-1 Rustemov,A (2525)-Matlakov,M (2674) Titled Tuesday intern op 22 Mar Late blitz 2022 (6)}) 11... a5 {[%emt 0:02:02]} 12. a3 {[%emt 0:00:49]} Nbd7 {[%emt 0:02:15]} 13. Nd2 {[%emt 0:18:12]} Qe7 {[%emt 0:09:00]} 14. O-O {[%emt 0:00:43]} Be6 {[%emt 0:22:24][%cal Od6h2]} (14... g5 $5 {[%cal Rg5h4]} 15. Bg3 Bxg3 16. hxg3 b5 $11) 15. f3 {[%emt 0:01:49]} c5 {[%emt 0:02:56]} 16. Rbe1 {[%emt 0:09:17]} (16. f4 $5 {[%cal Rf4f5]}) 16... Rac8 {[%emt 0:07:40]} 17. Qd1 {[%emt 0:02:32]} Bb8 {[%emt 0:03:59]} 18. Nb5 {[%emt 0:07:16]} Qd8 {[%emt 0:05:27]} 19. Bb1 {[%emt 0:01:31]} Qb6 {[%emt 0:01:51]} 20. a4 {[%emt 0:00:32]} cxd4 {[%emt 0:05:14]} 21. exd4 {[%emt 0:00:08]} Bf4 {[%emt 0:03:09]} (21... Nh5 {with more complications.} 22. Nb3 Rc4 23. Nc1 Nf8) 22. Kh1 {[%emt 0:10:02]} Rc6 {[%emt 0:03:29]} 23. Bd3 {[%emt 0:00:53]} Rec8 {[%emt 0:00:41]} (23... Qd8 $11 {remains equal.}) 24. Nb3 $16 {[%emt 0:00:36]} Ne8 {[%emt 0:02:06]} 25. g3 {[%emt 0:03:40]} Bb8 {[%emt 0:04:09]} (25... Bd6 $11) 26. f4 {[%emt 0:00:48] White is more active.} (26. Qd2 $16) 26... f5 $2 {[%emt 0:02:51] [#]} (26... Ndf6 $11 {and Black is okay.}) 27. Rxe6 $1 $18 {[%emt 0:02:17][%mdl 576] Remove Defender} Rxe6 {[%emt 0:00:08]} 28. Bxf5 {[%emt 0:00:01]} Nef6 {[%emt 0:04:14]} 29. Bxf6 {[%emt 0:00:31]} (29. Bxe6+ $6 Qxe6 30. Bxf6 (30. Nxa5 Ne4 $14) 30... Qe4+ 31. Kg1 Rc2 $16) 29... Nxf6 {[%emt 0:00:39]} 30. Bxe6+ $2 {[%emt 0:02:51]} (30. Nc5 $18 Ree8 31. Bxc8 Rxc8 32. Re1) 30... Qxe6 $14 {[%emt 0:00:05]} 31. Nc5 {[%emt 0:01:25]} Qh3 {[%emt 0:00:31] Hoping for ...Ng4.} 32. Re1 {[%emt 0:06:16]} (32. Nxb7 Rc2) 32... b6 {[%emt 0:00:06]} 33. Nd3 {[%emt 0:00:56] Excellent horsemanship.} Ne4 {[%emt 0:00:14]} 34. Kg1 {[%emt 0:02:20]} Kh7 {[%emt 0:02:03]} (34... g5 $1 $14) 35. Qe2 $16 {[%emt 0:01:41]} h5 {[%emt 0:00:36]} (35... Qf5 $16 36. Ne5 g5) 36. Nf2 $18 {[%emt 0:00:48]} Nxf2 {[%emt 0:00:31]} 37. Qxf2 {[%emt 0:00:02]} Qf5 {[%emt 0:00:30]} 38. Nc3 {[%emt 0:00:19]} Rc4 {[%emt 0:00:35]} 39. Qd2 {[%emt 0:00:56]} ({White should play} 39. Rd1) 39... Bd6 {[%emt 0:00:28][%cal Oc4d4]} 40. Qd1 {[%emt 0:00:00] [#]} (40. Kg2 $16) 40... Rxd4 $1 $15 {[%emt 0:00:00][%mdl 64] Remove Defender} 41. Qe2 {[%emt 0:06:15]} (41. Qxd4 $2 Bc5 $19) (41. Qf3 Rd3) 41... Rb4 {[%emt 0:04:39]} (41... Bc5 $15 {might be stronger.} 42. Kg2 Rb4) 42. Qf3 {[%emt 0:10:47]} (42. Qg2 $11 {keeps the balance.}) 42... Rxb2 $17 {[%emt 0:05:31] White must now prevent ...Bc5+.} 43. Qxd5 {[%emt 0:02:45]} (43. Nxd5 $17 {was worth a try.} h4 44. Ne3) 43... Bc5+ {[%emt 0:00:57]} ({Not} 43... Qh3 44. Ne2 Bc5+ 45. Kh1 $15) (43... Qxd5 $19 44. Nxd5 b5 45. axb5 a4) 44. Kh1 $15 {[%emt 0:00:09] [#]} Qxd5+ {[%emt 0:00:40]} 45. Nxd5 $17 {[%emt 0:00:02][%mdl 4096] Endgame KRB-KRN} Ra2 {[%emt 0:00:51]} 46. Rb1 {[%emt 0:03:27]} ({Better is} 46. Re4 $15) 46... Rxa4 {[%emt 0:01:29]} 47. Nxb6 {[%emt 0:00:05]} (47. Rb5 $142) 47... Rb4 {[%emt 0:07:19]} 48. Rxb4 {[%emt 0:00:05]} axb4 {[%emt 0:00:10][%cal Ba5b4,Bb4b3,Bb3b2][%mdl 32] KB-KN} ({Inferior is} 48... Bxb4 49. Kg2 $15) 49. Nc4 {[%emt 0:00:35]} b3 {[%emt 0:00:15]} 50. Nd2 $2 {[%emt 0:00:07][%mdl 8192]} (50. Kg2 $17) 50... b2 $19 {[%emt 0:00:31]} 51. Kg2 {[%emt 0:00:54]} Kg6 {[%emt 0:02:03]} 52. Kf3 {[%emt 0:00:44]} Kf5 {[%emt 0:01:28]} ({Wrong is} 52... Bb4 $2 53. Nb1 $19) (52... h4 $142 53. gxh4 Kh5) 53. h3 {[%emt 0:00:07]} Ke6 {[%emt 0:01:42]} 54. Ke4 {[%emt 0:00:05]} Bb4 {[%emt 0:02:33]} 55. Nb1 {[%emt 0:00:12]} Be1 {[%emt 0:01:55]} 56. g4 {[%emt 0:00:27] [#]} h4 $1 {[%emt 0:01:10]} 57. Na3 {[%emt 0:01:47]} Bd2 {[%emt 0:02:44]} 58. f5+ {[%emt 0:03:40]} Kf6 {[%emt 0:00:12]} 59. Kd5 {[%emt 0:00:14]} Bb4 {[%emt 0:00:55]} 60. Nb1 {[%emt 0:00:01]} Be7 {[%emt 0:00:58]} 61. Nd2 {[%emt 0:00:32]} Kg5 {[%emt 0:01:38]} 62. Ke4 {[%emt 0:00:04]} Bb4 {[%emt 0:00:37]} 63. Nb1 {[%emt 0:00:02]} Kf6 {[%emt 0:00:37]} 64. Kd5 $1 {[%emt 0:00:08]} Be7 {[%emt 0:00:56]} 65. Nd2 $1 {[%emt 0:00:07]} Kg5 {[%emt 0:00:42] ...Kf4 would be deadly.} 66. Ke4 {[%emt 0:00:02]} Bf6 {[%emt 0:00:50]} 67. Nf3+ {[%emt 0:00:54]} Kh6 {[%emt 0:00:07]} 68. Nd2 {[%emt 0:00:01]} g6 {[%emt 0:00:46]} 69. fxg6 {[%emt 0:00:15]} Kxg6 {[%emt 0:00:05]} 70. Nb1 {[%emt 0:00:33]} Bg7 {[%emt 0:00:36]} 71. Na3 {[%emt 0:00:49]} Kf6 {[%emt 0:00:12]} 72. Kd5 {[%emt 0:00:05]} Bf8 {[%emt 0:00:44]} 73. Nb1 {[%emt 0:00:01]} Bb4 {[%emt 0:00:23]} (73... Kg5 $17 {aiming for ...Kf4.} 74. Ke4 Bg7) 74. Kc4 $1 $11 {[%emt 0:00:19]} Bd6 {[%emt 0:00:51]} 75. Kd5 {[%emt 0:00:46]} (75. Kd3 $11) 75... Bf8 {[%emt 0:00:30]} 76. Nd2 {[%emt 0:00:09]} Bh6 {[%emt 0:00:35]} 77. Nb1 {[%emt 0:00:36]} Kg5 {[%emt 0:00:26] ( -> ...Kf4)} 78. Ke4 {[%emt 0:00:07]} Bg7 {[%emt 0:00:09]} 79. Nd2 {[%emt 0:00:13]} Kf6 {[%emt 0:00:46]} 80. Kd5 {[%emt 0:00:07]} Ke7 {[%emt 0:00:31]} (80... Kg6 $17 81. Nb1 Kg5) 81. Nb1 {[%emt 0:00:18]} (81. Kc4 $1 $11) 81... Bf6 {[%emt 0:00:15]} (81... Kf7 $17 82. Kc4 Kf6) 82. Na3 {[%emt 0:00:29]} (82. Kc4 $1 $11 {was the only way to keep the balance.}) 82... Kd7 {[%emt 0:00:29]} ({Black should try} 82... Kf7 $17 83. Nb1 Kg6) 83. Nb1 {[%emt 0:00:07] The position is equal.} Bg5 {[%emt 0:00:50]} 84. Nc3 {[%emt 0:00:21]} Bd2 {[%emt 0:00:42]} 85. Nb1 {[%emt 0:00:02]} Bc1 {[%emt 0:00:36]} 86. Nc3 {[%emt 0:00:14]} Kc7 {[%emt 0:00:31]} 87. Kc5 {[%emt 0:01:37]} Be3+ {[%emt 0:00:08]} 88. Kd5 {[%emt 0:00:55]} Bc1 {[%emt 0:00:55]} 89. Kc5 {[%emt 0:00:08]} Kb7 {[%emt 0:00:24]} 90. Nb1 {[%emt 0:02:37]} Be3+ {[%emt 0:00:37]} 91. Kd5 {[%emt 0:01:44]} Kb6 {[%emt 0:00:22]} 92. Na3 {[%emt 0:01:16] And now Nc4+ would win.} Ka6 {[%emt 0:00:38]} 93. Ke4 {A wild game.   Weighted Error Value: White=0.32/Black=0.27 (precise)} 1/2-1/2

[Event "Polish Youth G16 Championship 2023"]
[Site "Jastrzebia Gora"]
[Date "2023.03.14"]
[Round "4.4"]
[White "Szopa, Emilia"]
[Black "Pawicka, Magdalena"]
[Result "0-1"]
[ECO "B93"]
[WhiteElo "1709"]
[BlackElo "1805"]
[Annotator "NA RC COMBH"]
[PlyCount "80"]
[EventDate "2023.03.11"]
[EventType "swiss"]
[EventCountry "POL"]
[SourceTitle "playchess.com"]
[Source "ChessBase"]
[SourceQuality "1"]
[TimeControl "40/5400+30:1800+30"]

1. e4 {[%emt 0:00:09]} c5 {[%emt 0:00:20]} 2. Nf3 {[%emt 0:00:31]} d6 {[%emt 0:00:32]} 3. d4 {[%emt 0:00:30]} cxd4 {[%emt 0:00:06]} 4. Nxd4 {[%emt 0:00:14]} Nf6 {[%emt 0:00:11]} 5. Nc3 {[%emt 0:00:15]} a6 {[%emt 0:00:11]} 6. f4 {[%emt 0:01:18]} e5 {[%emt 0:00:39]} 7. Nb3 {[%emt 0:01:00]} Nbd7 {[%emt 0:02:23]} 8. g4 {[%emt 0:01:15]} d5 {[%emt 0:03:54]} 9. exd5 {[%emt 0:03:51]} Nb6 {[%emt 0:02:02]} 10. g5 {[%emt 0:00:54]} Nfxd5 {[%emt 0:00:41]} 11. Nxd5 {[%emt 0:02:13]} Nxd5 {[%emt 0:04:21]} 12. Bg2 {[%emt 0:03:24]} Nxf4 {[%emt 0:01:54]} 13. Qxd8+ {[%emt 0:01:17]} Kxd8 {[%emt 0:00:05]} 14. Bxf4 {[%emt 0:01:25]} exf4 {[%emt 0:00:18]} 15. O-O-O+ {[%emt 0:03:00]} Kc7 {[%emt 0:02:48]} 16. Rd4 {[%emt 0:05:49]} Bd6 {[%emt 0:15:28]} 17. Rhd1 {[%emt 0:02:59]} Rd8 {[%emt 0:04:22]} 18. Rc4+ {[%emt 0:03:15]} Kb6 {[%emt 0:02:59]} 19. a4 {[%emt 0:11:49]} Be6 {[%emt 0:11:19]} 20. Rcd4 {[%emt 0:13:34]} Be7 {[%emt 0:02:31]} 21. h4 {[%emt 0:01:46]} Rac8 {[%emt 0:07:33]} 22. R1d3 {[%emt 0:12:07]} h6 {[%emt 0:10:16]} 23. Rxd8 {[%emt 0:03:15]} Rxd8 {[%emt 0:01:15]} 24. gxh6 {[%emt 0:05:55]} Rxd3 {[%emt 0:01:44]} 25. cxd3 {[%emt 0:00:30]} gxh6 {[%emt 0:00:20]} 26. Nd4 {[%emt 0:02:45]} Bxh4 {[%emt 0:00:41]} 27. Nxe6 {[%emt 0:01:43]} fxe6 {[%emt 0:00:05]} 28. Kc2 {[%emt 0:03:08]} Kc7 {[%emt 0:00:57]} 29. Bf3 {[%emt 0:00:57]} b6 {[%emt 0:00:27]} 30. d4 {[%emt 0:02:32]} Kd6 {[%emt 0:01:52]} 31. Kd3 {[%emt 0:02:55]} e5 {[%emt 0:00:41]} 32. d5 {[%emt 0:03:39]} Bd8 {[%emt 0:02:52]} 33. Ke4 {[%emt 0:02:16]} Bc7 {[%emt 0:00:26]} 34. Kf5 {[%emt 0:01:51]} Kc5 {[%emt 0:01:17]} 35. Ke6 {[%emt 0:01:17]} Kd4 {[%emt 0:09:12]} 36. Be2 {[%emt 0:01:12]} e4 {[%emt 0:01:33]} 37. d6 {[%emt 0:00:45]} Bxd6 {[%emt 0:00:55]} 38. Kxd6 {[%emt 0:00:09]} f3 {[%emt 0:00:29]} 39. Bxa6 {[%emt 0:01:06]} e3 {[%emt 0:00:07]} 40. Kc6 {[%emt 0:00:00]} e2 {[%emt 0:00:00]} 0-1

[Event "Polish Youth G16 Championship 2023"]
[Site "Jastrzebia Gora"]
[Date "2023.03.14"]
[Round "4.5"]
[White "Zielinska, Aleksandra"]
[Black "Siekanska, Maria"]
[Result "0-1"]
[ECO "B54"]
[WhiteElo "1613"]
[BlackElo "1996"]
[Annotator "TA"]
[PlyCount "110"]
[EventDate "2023.03.11"]
[EventType "swiss"]
[EventCountry "POL"]
[SourceTitle "playchess.com"]
[Source "ChessBase"]
[SourceQuality "1"]
[TimeControl "40/5400+30:1800+30"]

{[%evp 23,110,46,43,45,51,35,37,35,45,0,32,27,43,39,56,56,70,82,73,66,132,125,147,154,192,195,206,209,241,213,180,205,200,158,171,45,58,31,44,-210,0,0,0,0,0,0,0,-12,-10,-12,-14,-22,-4,-190,-166,-345,-361,-771,-721,-854,-797,-802,-804,-925,-860,-903,-845,-29961,-29956,-29964,-6203,-6212,-2220,-29971,-29973,-29975,-29976,-29976,-29977,-29977,-29978,-29978,-29977,-29976,-29977,-29986,-29987,-29987,-29988]} 1. e4 c5 2. Nf3 d6 3. d4 cxd4 4. Nxd4 Nf6 5. f3 a6 6. c4 e6 7. Nc3 Be7 8. Be3 O-O 9. Qd2 Qc7 10. Be2 Nbd7 11. O-O b6 12. Rfc1 Bb7 13. b4 {B41: Sicilian: Kan Variation: 5 c4.} Rac8 14. a3 Qb8 15. Na4 {White is slightly better.} Rfe8 16. Nb3 Bd8 17. Bf4 Bc7 {[#]} 18. Rd1 $146 {[%cal Rf4d6]} ({Predecessor:} 18. c5 dxc5 19. Bxc7 Rxc7 20. bxc5 Nxc5 21. Naxc5 bxc5 22. Rxc5 Bxe4 23. Rxc7 Qxc7 24. fxe4 {½-½ Kumar,N (2115)-Nandhidhaa,P (2365) PNWCC Online Masters WOO rapid 2020 (4.30)}) 18... d5 19. Bxc7 Rxc7 20. exd5 exd5 21. c5 b5 (21... bxc5 $14 22. Naxc5 Nxc5 23. Nxc5 Qa7) 22. Nc3 $16 Ne5 23. Nd4 {[%cal Bb3d4,Bd4f5,Bf5d6][%mdl 32]} Nc4 24. Bxc4 dxc4 25. Nf5 $1 g6 26. Qh6 {[%csl Gf5][%cal Rh6g7]} Nh5 {[%cal Bf6h5,Bh5g7,Bg7e6][%mdl 32] Prevents Qg7+.} 27. Nd6 Rd8 28. Qg5 Rcd7 29. g4 ({White should play} 29. Ra2 $18) 29... Ng7 $1 $14 30. Nxb7 {[%mdl 64] Pin. A dynamic duo of knights.} (30. Kg2 $5 {[%cal Rd6b7]}) 30... Ne6 31. Qe3 $2 {[%mdl 8192] [#]} ({Reject} 31. Rxd7 Rxd7 32. Qf6 Qxb7 $11) (31. Qxd8+ $1 $14 {keeps the upper hand.} Rxd8 32. Nxd8 Nxd8 33. Rd6) 31... Qxb7 $2 (31... Rd3 $1 $19 {[%cal Rd3e3]} 32. Qe1 Qxb7) 32. Rxd7 $11 Rxd7 33. Rd1 {Repels Rd3} Rxd1+ 34. Nxd1 {[%mdl 4096] Endgame KQN-KQN} Qd7 $36 {[%mdl 2048] Black has some pressure.} 35. Nf2 Qd4 36. Qxd4 Nxd4 {KN-KN} 37. Kg2 Kf8 {White must now prevent ...Nc2.} 38. Ne4 $2 {[#]} (38. Nd1 $1 $11) 38... Nc2 $1 $19 39. c6 $2 (39. Kf2) 39... Ke7 40. Nc5 $2 (40. h4 Nxa3 41. h5) 40... Kd6 (40... Nxa3 $2 41. c7 (41. Nxa6 c3 $17) 41... h6 42. c8=Q $18) 41. Kf2 Nxa3 42. Nxa6 Kxc6 {...Nc2 is the strong threat.} 43. Ke2 Nc2 {...Nd4+ would be deadly.} 44. Kd2 Kb6 45. Kxc2 Kxa6 {KP-KP} 46. Kc3 Kb6 (46... g5 $142 47. Kd4 Kb6 48. Ke4 Kc6 49. Kd4 Kd6 50. Ke4 Ke6 51. f4 gxf4 52. Kxf4 Kd5 53. Ke3 f6 54. Ke2 Ke4 55. Kf2 Kd3 56. Ke1 Kc3 57. Kd1 Kxb4 58. h4 Kb3 59. g5 fxg5 60. Ke2 c3 61. hxg5 c2 62. Kf3 c1=Q 63. Kg4 Qc6 64. Kg3 b4 65. Kf2 Kc3 66. Ke3 b3 67. Ke2 Qg2+ 68. Ke3 b2 69. Kf4 b1=Q 70. Ke5 Qg6 71. Kf4 Q6xg5#) 47. Kd4 Kc6 (47... g5 $142 48. Ke4 Kc6) 48. Ke4 {[#]} f5+ $1 {[%mdl 512] Black mates.} 49. gxf5 (49. Kd4 h5) 49... gxf5+ 50. Kd4 Kd6 51. f4 Ke6 52. h3 h6 {[%cal Bh7h6,Bh6h5][%mdl 32]} 53. h4 h5 54. Kc3 Kd5 55. Kc2 Ke4 {Never resign too early!   Weighted Error Value: White=0.59/Black=0.38} 0-1

[Event "Polish Youth G16 Championship 2023"]
[Site "Jastrzebia Gora"]
[Date "2023.03.14"]
[Round "4.6"]
[White "Kicinska, Magdalena"]
[Black "Seemann, Pola"]
[Result "1-0"]
[ECO "D02"]
[WhiteElo "1573"]
[BlackElo "1714"]
[Annotator "NA RC COMBH"]
[PlyCount "107"]
[EventDate "2023.03.11"]
[EventType "swiss"]
[EventCountry "POL"]
[SourceTitle "playchess.com"]
[Source "ChessBase"]
[SourceQuality "1"]
[TimeControl "40/5400+30:1800+30"]

1. d4 {[%emt 0:00:02]} d5 {[%emt 0:00:04]} 2. Nf3 {[%emt 0:00:06]} c5 {[%emt 0:00:03]} 3. c3 {[%emt 0:00:31]} Nf6 {[%emt 0:00:06]} 4. Bg5 {[%emt 0:01:41]} Ne4 {[%emt 0:00:14]} 5. Bh4 {[%emt 0:01:03]} cxd4 {[%emt 0:00:07]} 6. Nxd4 {[%emt 0:01:17]} Qb6 {[%emt 0:06:54]} 7. Qb3 {[%emt 0:04:53]} Qxb3 {[%emt 0:00:33]} 8. Nxb3 {[%emt 0:00:45]} g5 {[%emt 0:03:43]} 9. Bg3 {[%emt 0:01:14]} Nc6 {[%emt 0:03:10]} 10. Nd4 {[%emt 0:08:30]} Nxg3 {[%emt 0:06:26]} 11. hxg3 {[%emt 0:00:13]} e5 {[%emt 0:02:39]} 12. Nxc6 {[%emt 0:03:07]} bxc6 {[%emt 0:00:13]} 13. Nd2 {[%emt 0:02:29]} Rb8 {[%emt 0:01:26]} 14. O-O-O {[%emt 0:05:20]} Bg7 {[%emt 0:02:48]} 15. e3 {[%emt 0:03:02]} O-O {[%emt 0:04:00]} 16. Bd3 {[%emt 0:02:51]} e4 {[%emt 0:04:58]} 17. Bc2 {[%emt 0:01:56]} Be6 {[%emt 0:08:23]} 18. f3 {[%emt 0:04:57]} f5 {[%emt 0:01:39]} 19. g4 {[%emt 0:03:13]} exf3 {[%emt 0:12:30]} 20. Nxf3 {[%emt 0:05:39]} h6 {[%emt 0:00:13]} 21. Nd4 {[%emt 0:03:49]} Bxd4 {[%emt 0:01:30]} 22. exd4 {[%emt 0:00:10]} Kg7 {[%emt 0:04:19]} 23. Rde1 {[%emt 0:02:20]} Rf6 {[%emt 0:01:36]} 24. gxf5 {[%emt 0:02:20]} Bxf5 {[%emt 0:00:09]} 25. Bxf5 {[%emt 0:01:20]} Rxf5 {[%emt 0:00:06]} 26. Re7+ {[%emt 0:00:07]} Kg6 {[%emt 0:01:23]} 27. Re6+ {[%emt 0:00:44]} Rf6 {[%emt 0:08:01]} 28. Rxh6+ {[%emt 0:07:36]} Kxh6 {[%emt 0:00:06]} 29. Rxf6+ {[%emt 0:00:03]} Kh5 {[%emt 0:00:08]} 30. Rf2 {[%emt 0:03:48]} Kh4 {[%emt 0:00:56]} 31. Kd1 {[%emt 0:06:20]} Kg3 {[%emt 0:01:09]} 32. Ke1 {[%emt 0:02:34]} g4 {[%emt 0:00:41]} 33. b3 {[%emt 0:01:07]} Rh8 {[%emt 0:00:31]} 34. c4 {[%emt 0:06:57]} Rh1+ {[%emt 0:00:07]} 35. Ke2 {[%emt 0:00:21]} Ra1 {[%emt 0:00:11]} 36. Rf6 {[%emt 0:03:45]} Rxa2+ {[%emt 0:02:11]} 37. Kd3 {[%emt 0:00:25]} dxc4+ {[%emt 0:08:04]} 38. bxc4 {[%emt 0:01:12]} Ra3+ {[%emt 0:02:11]} 39. Ke4 {[%emt 0:00:31]} Kxg2 {[%emt 0:01:35]} 40. Rxc6 {[%emt 0:00:00]} Rf3 {[%emt 0:00:00]} 41. Rg6 {[%emt 0:04:49]} g3 {[%emt 0:01:34]} 42. d5 {[%emt 0:00:18]} Rf8 {[%emt 0:01:27]} 43. d6 {[%emt 0:00:29]} a5 {[%emt 0:02:29]} 44. c5 {[%emt 0:07:25]} a4 {[%emt 0:00:11]} 45. d7 {[%emt 0:00:49]} Kf2 {[%emt 0:12:09]} 46. c6 {[%emt 0:03:25]} a3 {[%emt 0:02:03]} 47. c7 {[%emt 0:00:27]} a2 {[%emt 0:00:49]} 48. d8=Q {[%emt 0:00:39]} Rxd8 {[%emt 0:00:21]} 49. cxd8=Q {[%emt 0:00:10]} a1=Q {[%emt 0:00:09]} 50. Qd2+ {[%emt 0:03:33]} Kf1 {[%emt 0:00:25]} 51. Qf4+ {[%emt 0:00:19]} Ke1 {[%emt 0:00:23]} 52. Qxg3+ {[%emt 0:00:13]} Kd2 {[%emt 0:00:06]} 53. Qh2+ {[%emt 0:00:11]} Kc3 {[%emt 0:00:08]} 54. Qe5+ {[%emt 0:00:07]} 1-0